[Event "Polish University-ch Women 2024"]
[Site "Lublin"]
[Date "2024.02.24"]
[Round "7.5"]
[White "Jarocka, Liwia"]
[Black "Harazinska, Magdalena"]
[Result "1/2-1/2"]
[ECO "B41"]
[WhiteElo "2199"]
[BlackElo "1950"]
[Annotator "RC"]
[PlyCount "126"]
[EventDate "2024.02.22"]
[EventType "swiss"]
[EventCountry "POL"]
[SourceTitle "playchess.com"]
[Source "ChessBase"]
[SourceQuality "1"]
[TimeControl "600+3"]

1. e4 {[%emt 0:00:01]} c5 {[%emt 0:00:01]} 2. Nf3 {[%emt 0:00:01]} a6 {[%emt 0:00:00]} 3. c4 {[%emt 0:00:03]} e6 {[%emt 0:00:05]} 4. d4 {[%emt 0:00:02]} cxd4 {[%emt 0:00:04]} 5. Nxd4 {[%emt 0:00:01]} Qc7 {[%emt 0:00:02]} 6. Nc3 {[%emt 0:00:05]} Nf6 {[%emt 0:10:09]} 7. Be2 {[%emt 0:00:06]} Be7 {[%emt 0:00:00]} 8. O-O {[%emt 0:00:03]} O-O {[%emt 0:00:00]} 9. Be3 {[%emt 0:00:03]} d6 {[%emt 0:00:00]} 10. Rc1 {[%emt 0:00:05]} b6 {[%emt 0:00:00]} 11. f3 {[%emt 0:00:09]} Bb7 {[%emt 0:00:00]} 12. Kh1 {[%emt 0:00:03]} Nbd7 {[%emt 0:00:00]} 13. b4 {[%emt 0:00:02]} Rac8 {[%emt 0:00:00]} 14. a3 {[%emt 0:00:08]} Qb8 {[%emt 0:00:00]} 15. g4 {[%emt 0:00:40]} Ne5 {[%emt 0:00:00]} 16. Na4 {[%emt 0:00:43]} Nfd7 {[%emt 0:00:00]} 17. Nb3 {[%emt 0:00:22]} Bd8 {[%emt 0:00:00]} 18. Qd2 {[%emt 0:00:44]} Bc7 {[%emt 0:00:00]} 19. Nb2 {[%emt 0:00:14]} Rfd8 {[%emt 0:00:00]} 20. Kg1 {[%emt 0:00:02]} Ng6 {[%emt 0:00:00]} 21. Nd4 {[%emt 0:00:24]} d5 {[%emt 0:00:00]} 22. exd5 {[%emt 0:00:40]} Bxh2+ {[%emt 0:00:00]} 23. Kh1 {[%emt 0:00:01]} exd5 {[%emt 0:00:00]} 24. Nf5 {[%emt 0:00:15]} dxc4 {[%emt 0:00:00]} 25. Bxc4 {[%emt 0:00:26]} Be5 {[%emt 0:00:00]} 26. Nd3 {[%emt 0:00:18]} b5 {[%emt 0:00:00]} 27. Bb3 {[%emt 0:00:16]} Rxc1 {[%emt 0:00:00]} 28. Qxc1 {[%emt 0:00:06]} Nf6 {[%emt 0:00:00]} 29. Nxe5 {[%emt 0:00:40]} Nxe5 {[%emt 0:00:00]} 30. Bf4 {[%emt 0:00:56]} Nd3 {[%emt 0:00:00]} 31. Bxb8 {[%emt 0:00:10]} Nxc1 {[%emt 0:00:00]} 32. Rxc1 {[%emt 0:00:40]} Bxf3+ {[%emt 0:00:00]} 33. Kg1 {[%emt 0:00:02]} Rxb8 {[%emt 0:00:00]} 34. Rc7 {[%emt 0:00:20]} Rf8 {[%emt 0:00:00]} 35. g5 {[%emt 0:00:07]} Ne4 {[%emt 0:00:00]} 36. Ra7 {[%emt 0:00:44]} Nxg5 {[%emt 0:00:00]} 37. Rxa6 {[%emt 0:00:07]} g6 {[%emt 0:00:00]} 38. Nd4 {[%emt 0:00:02]} Be4 {[%emt 0:00:19]} 39. Nxb5 {[%emt 0:00:12]} Bd3 {[%emt 0:00:39]} 40. Rb6 {[%emt 0:00:04]} h5 {[%emt 0:00:07]} 41. a4 {[%emt 0:00:21]} h4 {[%emt 0:00:01]} 42. Rd6 {[%emt 0:00:20]} Be4 {[%emt 0:00:09]} 43. Nc3 {[%emt 0:00:04]} Bf3 {[%emt 0:00:08]} 44. Rxg6+ {[%emt 0:00:02]} Kh7 {[%emt 0:00:03]} 45. Rxg5 {[%emt 0:00:02]} f6 {[%emt 0:00:05]} 46. Rf5 {[%emt 0:00:02]} Bg4 {[%emt 0:00:02]} 47. Rf4 {[%emt 0:00:01]} f5 {[%emt 0:00:03]} 48. Bd1 {[%emt 0:00:01]} Rc8 {[%emt 0:00:12]} 49. Bxg4 {[%emt 0:00:10]} fxg4 {[%emt 0:00:02]} 50. Nd5 {[%emt 0:00:25]} Rc1+ {[%emt 0:00:06]} 51. Kf2 {[%emt 0:00:34]} g3+ {[%emt 0:00:05]} 52. Kg2 {[%emt 0:00:20]} Rc2+ {[%emt 0:00:17]} 53. Kg1 Rc1+ {[%emt 0:00:00]} 54. Kg2 {[%emt 0:00:03]} Rc2+ {[%emt 0:00:00]} 55. Kg1 {[%emt 0:00:02]} Rc1+ {[%emt 0:00:00]} 56. Rf1 {[%emt 0:00:17]} Rc2 {[%emt 0:00:04]} 57. Nf4 {[%emt 0:00:00]} Rc4 {[%emt 0:00:05]} 58. b5 {[%emt 0:00:00]} Rxa4 {[%emt 0:00:01]} 59. b6 {[%emt 0:00:00]} Rb4 {[%emt 0:00:01]} 60. Nd5 {[%emt 0:00:00]} Rb2 {[%emt 0:00:01]} 61. Rf4 {[%emt 0:00:00]} Rb1+ {[%emt 0:00:05]} 62. Kg2 {[%emt 0:00:00]} Rb2+ {[%emt 0:00:01]} 63. Kg1 {[%emt 0:00:08]} Rb1+ {[%emt 0:00:00]} 1/2-1/2

[Event "Polish University-ch Women 2024"]
[Site "Lublin"]
[Date "2024.02.24"]
[Round "7.6"]
[White "Michalak, Wiktoria"]
[Black "Kroliczek, Gabriela"]
[Result "1-0"]
[ECO "D13"]
[WhiteElo "1522"]
[BlackElo "1928"]
[Annotator "NA RC"]
[PlyCount "121"]
[EventDate "2024.02.22"]
[EventType "swiss"]
[EventCountry "POL"]
[SourceTitle "playchess.com"]
[Source "ChessBase"]
[SourceQuality "1"]
[TimeControl "600+3"]

1. Nf3 {[%emt 0:00:02]} d5 {[%emt 0:00:01]} 2. c4 {[%emt 0:00:02]} c6 {[%emt 0:00:11]} 3. cxd5 {[%emt 0:00:09]} cxd5 {[%emt 0:00:01]} 4. d4 {[%emt 0:00:02]} Nc6 {[%emt 0:00:24]} 5. Nc3 {[%emt 0:00:05]} Nf6 {[%emt 0:00:47]} 6. g3 {[%emt 0:00:14]} Bf5 {[%emt 0:00:11]} 7. Nh4 {[%emt 0:00:07]} Bd7 {[%emt 0:00:08]} 8. Bg2 {[%emt 0:00:03]} e6 {[%emt 0:00:01]} 9. O-O {[%emt 0:00:16]} Be7 {[%emt 0:00:05]} 10. Bd2 {[%emt 0:00:34]} O-O {[%emt 0:00:03]} 11. e3 {[%emt 0:00:19]} Na5 {[%emt 0:01:22]} 12. b3 {[%emt 0:01:04]} Rc8 {[%emt 0:00:43]} 13. Qe1 {[%emt 0:00:15]} Nc6 {[%emt 0:00:03]} 14. Rc1 {[%emt 0:00:56]} Ba3 {[%emt 0:00:02]} 15. Rb1 {[%emt 0:00:14]} Nb4 {[%emt 0:01:23]} 16. Qd1 {[%emt 0:01:06]} a5 {[%emt 0:00:16]} 17. e4 {[%emt 0:00:42]} dxe4 {[%emt 0:00:09]} 18. Nxe4 {[%emt 0:00:16]} Bb5 {[%emt 0:00:32]} 19. Bxb4 {[%emt 0:00:20]} Bxb4 {[%emt 0:00:01]} 20. a4 {[%emt 0:01:07]} Bxf1 {[%emt 0:00:07]} 21. Qxf1 {[%emt 0:00:29]} Nxe4 {[%emt 0:00:41]} 22. Bxe4 {[%emt 0:00:02]} Qxd4 {[%emt 0:00:10]} 23. Bxb7 {[%emt 0:00:09]} Rc3 {[%emt 0:00:39]} 24. Ba6 {[%emt 0:00:06]} g6 {[%emt 0:00:48]} 25. Rd1 {[%emt 0:00:07]} Qf6 {[%emt 0:00:01]} 26. Bc4 {[%emt 0:00:08]} Bc5 {[%emt 0:00:08]} 27. Qe2 {[%emt 0:00:11]} Rd8 {[%emt 0:00:37]} 28. Rxd8+ {[%emt 0:00:22]} Qxd8 {[%emt 0:00:01]} 29. Nf3 {[%emt 0:00:31]} Rc1+ {[%emt 0:00:47]} 30. Kg2 {[%emt 0:00:02]} Qd1 {[%emt 0:00:03]} 31. Qe4 {[%emt 0:00:20]} Rc2 {[%emt 0:00:51]} 32. Qa8+ {[%emt 0:01:01]} Kg7 {[%emt 0:00:00]} 33. Qe4 {[%emt 0:00:13]} Rxf2+ {[%emt 0:00:02]} 34. Kh3 {[%emt 0:00:01]} Qxf3 {[%emt 0:00:08]} 35. Qe5+ {[%emt 0:00:01]} Kh6 {[%emt 0:00:14]} 36. Qxc5 {[%emt 0:00:15]} Qh5+ {[%emt 0:00:05]} 37. Qxh5+ {[%emt 0:00:00]} Kxh5 {[%emt 0:00:01]} 38. g4+ {[%emt 0:00:00]} Kg5 {[%emt 0:00:00]} 39. Kg3 {[%emt 0:00:00]} Rc2 {[%emt 0:00:03]} 40. h4+ {[%emt 0:00:00]} Kf6 {[%emt 0:00:01]} 41. Kf4 {[%emt 0:00:02]} Rh2 {[%emt 0:00:06]} 42. Kg3 {[%emt 0:00:01]} Rh1 {[%emt 0:00:02]} 43. Bb5 {[%emt 0:00:03]} e5 {[%emt 0:00:02]} 44. g5+ {[%emt 0:00:03]} Ke7 {[%emt 0:00:03]} 45. Bc4 {[%emt 0:00:03]} f5 {[%emt 0:00:03]} 46. gxf6+ {[%emt 0:00:04]} Kxf6 {[%emt 0:00:01]} 47. Bd5 {[%emt 0:00:04]} Kf5 {[%emt 0:00:01]} 48. Bxh1 {[%emt 0:00:01]} h6 {[%emt 0:00:07]} 49. Kf3 {[%emt 0:00:01]} g5 {[%emt 0:00:01]} 50. hxg5 {[%emt 0:00:01]} hxg5 {[%emt 0:00:01]} 51. Kg3 {[%emt 0:00:02]} e4 {[%emt 0:00:01]} 52. Bg2 {[%emt 0:00:02]} Ke5 {[%emt 0:00:05]} 53. Kg4 {[%emt 0:00:01]} e3 {[%emt 0:00:03]} 54. Bf3 {[%emt 0:00:02]} Kd4 {[%emt 0:00:01]} 55. Kxg5 {[%emt 0:00:01]} Kd3 {[%emt 0:00:00]} 56. Kf4 {[%emt 0:00:03]} e2 {[%emt 0:00:01]} 57. Bxe2+ {[%emt 0:00:02]} Kxe2 {[%emt 0:00:01]} 58. Ke4 {[%emt 0:00:01]} Kd2 {[%emt 0:00:00]} 59. Kd4 {[%emt 0:00:01]} Kc2 {[%emt 0:00:01]} 60. Kc4 {[%emt 0:00:00]} Kb2 {[%emt 0:00:02]} 61. b4 {[%emt 0:00:01]} 1-0

[Event "Polish University-ch Women 2024"]
[Site "Lublin"]
[Date "2024.02.24"]
[Round "7.7"]
[White "Wikar, Martyna"]
[Black "Mirowska, Oliwia"]
[Result "1-0"]
[ECO "B01"]
[WhiteElo "2214"]
[BlackElo "1977"]
[Annotator "RC"]
[PlyCount "73"]
[EventDate "2024.02.22"]
[EventType "swiss"]
[EventCountry "POL"]
[SourceTitle "playchess.com"]
[Source "ChessBase"]
[SourceQuality "1"]
[TimeControl "600+3"]

1. e4 {[%emt 0:00:02]} d5 {[%emt 0:00:17]} 2. exd5 {[%emt 0:00:02]} Qxd5 {[%emt 0:00:02]} 3. Nf3 {[%emt 0:00:03]} Nf6 {[%emt 0:00:03]} 4. d4 {[%emt 0:00:03]} Bg4 {[%emt 0:00:12]} 5. Be2 {[%emt 0:00:01]} e6 {[%emt 0:00:10]} 6. c4 {[%emt 0:00:02]} Qd8 {[%emt 0:00:02]} 7. Nc3 {[%emt 0:00:16]} Be7 {[%emt 0:00:02]} 8. h3 {[%emt 0:00:02]} Bf5 {[%emt 0:00:04]} 9. O-O {[%emt 0:00:07]} O-O {[%emt 0:00:04]} 10. Be3 {[%emt 0:00:17]} Nbd7 {[%emt 0:00:28]} 11. Nh4 {[%emt 0:00:24]} Bg6 {[%emt 0:00:04]} 12. Nxg6 {[%emt 0:00:03]} hxg6 {[%emt 0:00:01]} 13. Bf3 {[%emt 0:00:12]} c6 {[%emt 0:00:04]} 14. Rc1 {[%emt 0:00:10]} Rc8 {[%emt 0:01:30]} 15. Qe2 {[%emt 0:00:34]} Bd6 {[%emt 0:01:10]} 16. Rfd1 {[%emt 0:00:10]} a6 {[%emt 0:00:50]} 17. a3 {[%emt 0:01:21]} Qc7 {[%emt 0:00:22]} 18. d5 {[%emt 0:00:31]} exd5 {[%emt 0:00:14]} 19. cxd5 {[%emt 0:00:03]} c5 {[%emt 0:00:12]} 20. b4 {[%emt 0:00:55]} Rfe8 {[%emt 0:01:42]} 21. b5 {[%emt 0:00:46]} Ne5 {[%emt 0:01:15]} 22. bxa6 {[%emt 0:01:03]} bxa6 {[%emt 0:00:02]} 23. Qxa6 {[%emt 0:01:04]} Nxf3+ {[%emt 0:00:17]} 24. gxf3 {[%emt 0:00:01]} Qe7 {[%emt 0:01:14]} 25. Nb5 {[%emt 0:00:57]} Bb8 {[%emt 0:00:21]} 26. d6 {[%emt 0:00:09]} Qe5 {[%emt 0:00:08]} 27. Qb7 {[%emt 0:00:32]} Rcd8 {[%emt 0:00:12]} 28. Rxc5 {[%emt 0:00:09]} Qe6 {[%emt 0:00:10]} 29. Nc7 {[%emt 0:00:16]} Bxc7 {[%emt 0:00:03]} 30. Rxc7 {[%emt 0:00:02]} Rf8 {[%emt 0:00:06]} 31. d7 {[%emt 0:00:12]} Nh5 {[%emt 0:00:06]} 32. Qe4 {[%emt 0:00:08]} Qb3 {[%emt 0:00:06]} 33. Qc2 {[%emt 0:00:09]} Qe6 {[%emt 0:00:01]} 34. Qc4 {[%emt 0:00:07]} Qxh3 {[%emt 0:00:03]} 35. Qg4 {[%emt 0:00:01]} Qxg4+ {[%emt 0:00:01]} 36. fxg4 {[%emt 0:00:01]} Nf6 {[%emt 0:00:02]} 37. Bc5 {[%emt 0:00:07]} 1-0

[Event "Polish University-ch Women 2024"]
[Site "Lublin"]
[Date "2024.02.24"]
[Round "7.8"]
[White "Michalska, Aleksandra"]
[Black "Czarniecka, Aleksandra"]
[Result "1-0"]
[ECO "E61"]
[WhiteElo "1812"]
[BlackElo "1961"]
[Annotator "NA"]
[PlyCount "67"]
[EventDate "2024.02.22"]
[EventType "swiss"]
[EventCountry "POL"]
[SourceTitle "playchess.com"]
[Source "ChessBase"]
[SourceQuality "1"]
[TimeControl "600+3"]

1. Nf3 {[%emt 0:00:01]} Nf6 {[%emt 0:00:05]} 2. g3 {[%emt 0:00:02]} g6 {[%emt 0:00:05]} 3. Bg2 {[%emt 0:00:01]} Bg7 {[%emt 0:00:00]} 4. d4 {[%emt 0:00:07]} O-O {[%emt 0:00:03]} 5. O-O {[%emt 0:00:03]} d6 {[%emt 0:00:01]} 6. c4 {[%emt 0:00:04]} Nc6 {[%emt 0:00:16]} 7. Nc3 {[%emt 0:00:10]} e5 {[%emt 0:00:03]} 8. e3 {[%emt 0:00:07]} exd4 {[%emt 0:00:36]} 9. Nxd4 {[%emt 0:00:08]} Ne5 {[%emt 0:00:07]} 10. b3 {[%emt 0:00:07]} Bg4 {[%emt 0:00:57]} 11. f3 {[%emt 0:00:23]} Bd7 {[%emt 0:00:12]} 12. Bb2 {[%emt 0:00:13]} Qc8 {[%emt 0:00:00]} 13. Qc2 {[%emt 0:00:30]} Bh3 {[%emt 0:00:13]} 14. Rad1 {[%emt 0:00:22]} Bxg2 {[%emt 0:00:03]} 15. Qxg2 {[%emt 0:00:06]} Nfd7 {[%emt 0:00:42]} 16. Nd5 {[%emt 0:00:10]} Qd8 {[%emt 0:01:11]} 17. e4 {[%emt 0:00:38]} c6 {[%emt 0:00:25]} 18. Ne3 {[%emt 0:00:37]} Nc5 {[%emt 0:00:01]} 19. Qc2 {[%emt 0:00:21]} Qe7 {[%emt 0:00:35]} 20. b4 {[%emt 0:00:55]} Ne6 {[%emt 0:00:16]} 21. Ne2 {[%emt 0:00:25]} Bh6 {[%emt 0:00:51]} 22. f4 {[%emt 0:00:27]} Nd7 {[%emt 0:01:03]} 23. Ng4 {[%emt 0:00:20]} Bg7 {[%emt 0:00:14]} 24. f5 {[%emt 0:00:24]} gxf5 {[%emt 0:01:40]} 25. exf5 {[%emt 0:00:25]} Ng5 {[%emt 0:00:51]} 26. Bxg7 {[%emt 0:00:39]} Kxg7 {[%emt 0:00:06]} 27. f6+ {[%emt 0:00:06]} Nxf6 {[%emt 0:00:01]} 28. Nxf6 {[%emt 0:00:49]} Qe3+ {[%emt 0:00:02]} 29. Kh1 {[%emt 0:00:07]} Rh8 {[%emt 0:00:15]} 30. Qd2 {[%emt 0:00:09]} Qe5 {[%emt 0:00:10]} 31. Qf4 {[%emt 0:00:40]} Qxe2 {[%emt 0:00:04]} 32. Qxg5+ {[%emt 0:00:01]} Kf8 {[%emt 0:00:02]} 33. Qh6+ {[%emt 0:00:06]} Ke7 {[%emt 0:00:03]} 34. Rfe1 {[%emt 0:00:01]} 1-0

[Event "Polish University-ch Women 2024"]
[Site "Lublin"]
[Date "2024.02.24"]
[Round "7.9"]
[White "Kaczmarska, Joanna"]
[Black "Buchta, Agnieszka"]
[Result "1-0"]
[ECO "A05"]
[WhiteElo "1870"]
[BlackElo "1807"]
[Annotator "NA"]
[PlyCount "105"]
[EventDate "2024.02.22"]
[EventType "swiss"]
[EventCountry "POL"]
[SourceTitle "playchess.com"]
[Source "ChessBase"]
[SourceQuality "1"]
[TimeControl "600+3"]

1. Nf3 {[%emt 0:00:02]} Nf6 {[%emt 0:00:01]} 2. g3 {[%emt 0:00:02]} g6 {[%emt 0:00:07]} 3. Bg2 {[%emt 0:00:00]} Bg7 {[%emt 0:00:01]} 4. O-O {[%emt 0:00:02]} O-O {[%emt 0:00:09]} 5. d3 {[%emt 0:00:01]} d6 {[%emt 0:00:14]} 6. e4 {[%emt 0:00:03]} e5 {[%emt 0:00:11]} 7. Nbd2 {[%emt 0:00:02]} c5 {[%emt 0:00:32]} 8. Nh4 {[%emt 0:01:14]} Nh5 {[%emt 0:00:53]} 9. Nf5 {[%emt 0:00:58]} gxf5 {[%emt 0:02:28]} 10. Qxh5 {[%emt 0:00:09]} f4 {[%emt 0:00:54]} 11. gxf4 {[%emt 0:02:32]} exf4 {[%emt 0:00:04]} 12. Nc4 {[%emt 0:00:02]} Qf6 {[%emt 0:00:54]} 13. Qf3 {[%emt 0:03:08]} Bh6 {[%emt 0:00:25]} 14. Ne3 {[%emt 0:00:02]} Qh4 {[%emt 0:00:43]} 15. Nd5 {[%emt 0:00:31]} Bg4 {[%emt 0:00:22]} 16. Qxg4+ {[%emt 0:00:05]} Qxg4 {[%emt 0:00:04]} 17. Nf6+ {[%emt 0:00:00]} Kh8 {[%emt 0:00:16]} 18. Nxg4 {[%emt 0:00:02]} Bg5 {[%emt 0:00:06]} 19. h4 {[%emt 0:00:27]} Bxh4 {[%emt 0:00:21]} 20. Bxf4 {[%emt 0:00:03]} Rg8 {[%emt 0:00:36]} 21. Nh6 {[%emt 0:00:09]} Rg6 {[%emt 0:00:08]} 22. Nf5 {[%emt 0:00:18]} Nc6 {[%emt 0:00:35]} 23. Nxh4 {[%emt 0:00:04]} Rg4 {[%emt 0:00:05]} 24. Bg3 {[%emt 0:00:08]} Rag8 {[%emt 0:00:17]} 25. Nf5 {[%emt 0:00:34]} R8g6 {[%emt 0:00:13]} 26. Nxd6 {[%emt 0:00:12]} Nd4 {[%emt 0:00:05]} 27. Nxf7+ {[%emt 0:00:24]} Kg8 {[%emt 0:00:01]} 28. Ne5 {[%emt 0:00:03]} Ne2+ {[%emt 0:00:05]} 29. Kh2 {[%emt 0:00:01]} Rh6+ {[%emt 0:00:03]} 30. Bh3 {[%emt 0:00:01]} Rg5 {[%emt 0:00:16]} 31. Rae1 {[%emt 0:00:02]} Rgh5 {[%emt 0:00:03]} 32. Rxe2 {[%emt 0:00:01]} Rxh3+ {[%emt 0:00:03]} 33. Kg2 {[%emt 0:00:01]} R3h5 {[%emt 0:00:04]} 34. Ng4 {[%emt 0:00:01]} Rg6 {[%emt 0:00:02]} 35. f3 {[%emt 0:00:02]} Rhg5 {[%emt 0:00:03]} 36. Bf4 {[%emt 0:00:01]} Rh5 {[%emt 0:00:02]} 37. Kf2 {[%emt 0:00:01]} c4 {[%emt 0:00:08]} 38. dxc4 {[%emt 0:00:02]} Ra5 {[%emt 0:00:02]} 39. a3 {[%emt 0:00:02]} h5 {[%emt 0:00:02]} 40. Nh6+ {[%emt 0:00:01]} Kh7 {[%emt 0:00:02]} 41. Nf5 {[%emt 0:00:01]} Rc5 {[%emt 0:00:14]} 42. b3 {[%emt 0:00:03]} b5 {[%emt 0:00:05]} 43. cxb5 {[%emt 0:00:01]} Rxb5 {[%emt 0:00:01]} 44. a4 {[%emt 0:00:01]} Rc5 {[%emt 0:00:02]} 45. Rh1 {[%emt 0:00:02]} Rgc6 {[%emt 0:00:06]} 46. Rxh5+ {[%emt 0:00:02]} Kg6 {[%emt 0:00:05]} 47. Rh6+ {[%emt 0:00:05]} Kf7 {[%emt 0:00:03]} 48. Rxc6 {[%emt 0:00:03]} Rxc6 {[%emt 0:00:01]} 49. Rd2 {[%emt 0:00:03]} a5 {[%emt 0:00:05]} 50. Rd7+ {[%emt 0:00:05]} Ke8 {[%emt 0:00:02]} 51. Re7+ {[%emt 0:00:05]} Kd8 {[%emt 0:00:03]} 52. Bc7+ {[%emt 0:00:06]} Kc8 {[%emt 0:00:02]} 53. Nd6+ {[%emt 0:00:11]} 1-0

[Event "Polish University-ch Women 2024"]
[Site "Lublin"]
[Date "2024.02.24"]
[Round "7.10"]
[White "Pisarek, Elzbieta"]
[Black "Dmochowska, Agnieszka"]
[Result "0-1"]
[ECO "B31"]
[WhiteElo "1754"]
[BlackElo "2001"]
[Annotator "NA"]
[PlyCount "60"]
[EventDate "2024.02.22"]
[EventType "swiss"]
[EventCountry "POL"]
[SourceTitle "playchess.com"]
[Source "ChessBase"]
[SourceQuality "1"]
[TimeControl "600+3"]

1. e4 {[%emt 0:00:01]} c5 {[%emt 0:00:01]} 2. Nf3 {[%emt 0:00:01]} Nc6 {[%emt 0:00:03]} 3. Bb5 {[%emt 0:00:02]} Nf6 {[%emt 0:00:02]} 4. e5 {[%emt 0:00:23]} Nd5 {[%emt 0:00:01]} 5. c3 {[%emt 0:00:22]} g6 {[%emt 0:00:32]} 6. O-O {[%emt 0:00:12]} Bg7 {[%emt 0:00:01]} 7. d4 {[%emt 0:00:21]} cxd4 {[%emt 0:00:01]} 8. cxd4 {[%emt 0:00:01]} O-O {[%emt 0:00:02]} 9. Nc3 {[%emt 0:00:08]} Nc7 {[%emt 0:00:14]} 10. Ba4 {[%emt 0:02:04]} d6 {[%emt 0:03:25]} 11. Bxc6 {[%emt 0:00:49]} bxc6 {[%emt 0:00:01]} 12. h3 {[%emt 0:00:14]} Rb8 {[%emt 0:00:16]} 13. Qa4 {[%emt 0:00:40]} Ba6 {[%emt 0:00:28]} 14. Re1 {[%emt 0:00:22]} Rb6 {[%emt 0:00:34]} 15. Qc2 {[%emt 0:01:10]} Qd7 {[%emt 0:00:42]} 16. Bf4 {[%emt 0:00:41]} Ne6 {[%emt 0:00:25]} 17. Be3 {[%emt 0:00:29]} Rbb8 {[%emt 0:00:11]} 18. Rad1 {[%emt 0:00:26]} Rfc8 {[%emt 0:00:03]} 19. Qd2 {[%emt 0:00:12]} Bb7 {[%emt 0:00:49]} 20. b3 {[%emt 0:00:14]} Qc7 {[%emt 0:00:16]} 21. Ne4 {[%emt 0:00:21]} Rd8 {[%emt 0:00:14]} 22. Neg5 {[%emt 0:00:17]} Nxg5 {[%emt 0:00:03]} 23. Bxg5 {[%emt 0:00:27]} dxe5 {[%emt 0:00:03]} 24. Nxe5 {[%emt 0:00:26]} f6 {[%emt 0:00:01]} 25. Nf3 {[%emt 0:00:47]} fxg5 {[%emt 0:00:03]} 26. Qxg5 {[%emt 0:00:02]} Bf6 {[%emt 0:00:14]} 27. Qe3 {[%emt 0:00:07]} Rd5 {[%emt 0:00:06]} 28. Nd2 {[%emt 0:00:03]} Kg7 {[%emt 0:00:06]} 29. Nc4 {[%emt 0:00:02]} Rbd8 {[%emt 0:00:08]} 30. Ne5 {[%emt 0:00:03]} Bxe5 {[%emt 0:00:02]} 0-1